Workbook

Sheet Pasiūlymas
A2: PIRKIMO SĄLYGŲ PRIEDAS "PASIŪLYMŲ FORMA"
A4: CHIRURGINIAI INSTRUMENTAI IR JŲ PRIEDAI
A6: Kam: | B6: VšĮ LSMU Kauno ligoninė
A8: Data: | B8: 2022 06 27
A9: Nr.: | B9: 598828
A10: Vieta: | B10: Kaunas
A12: Tiekėjo pavadinimas / Ūkio subjektų grupės nariai: | C12: UAB Salmeda
A13: Tiekėjo kodas (-ai): | C13: 123500866
A14: Tiekėjo adresas (-ai): | C14: P. Baublio g. 41, LT-08431 Vilnius
A15: Tiekėjo PVM mokėtojo kodas(-ai): | C15: LT235008610
A16: Tiekėjo / Ūkio subjektų grupės atsakingo partnerio sąskaitos numeris, banko pavadinimas ir banko kodas (-ai): | C16: SEB bankas, a.s. LT337044060001498542 Swedbankas a.s. LT597300010002438156
A17: Asmens atsakingo už pasiūlymą vardas, pavardė: | C17: Kostas Čekanauskas
A18: Asmens atsakingo už pasiūlymą telefono numeris, el. pašto adresas: | C18: 8 5 2729006, med@salmeda.lt
A19: Tiekėjo / Ūkio subjektų grupės, laimėjimo atveju, pasirašančio sutartį asmens vardas, pavardė, pareigos: | C19: direktorius Viktoras Šarpis
A20: Tiekėjo / Ūkio subjektų grupės, laimėjimo atveju, už sutarties vykdymą atsakingo asmens vardas, pavardė, telefono numeris, elektroninio pašto adresas: | C20: Kostas Čekanauskas, 8 5 2729006, med@salmeda.lt
A21: (1) Tiekėjo / Ūkio subjektų grupės narių, (2) ūkio subjektų, kurių pajėgumais remiamasi, ir (3) jei pašalinimo pagrindai taikomi visiems subtiekėjams - subtiekėjų, kolegialaus priežiūros organo (Stebėtojų tarybos) ir (ar) kolegialaus valdymo organo (Valdybos) narių sąrašas (jei sudaryta) ir (ar) asmuo, kuriam suteikti VPĮ 46 str. 2 d. 2 p. numatyti įgaliojimai | G21: =IF((SUMPRODUCT(--(C21=""))>0), "Privaloma užpildyti, kai taikomi pašalinimo pagrindai", "") -> Privaloma užpildyti, kai taikomi pašalinimo pagrindai
A23: Tiekėjo patvirtinimai:
A24: 1. Šiuo pasiūlymu pažymime, kad sutinkame su visomi pirkimo sąlygomis, nustatytomis:
A25: 1.1. viešojo pirkimo dokumentuose
A26: 1.2. kituose pirkimo dokumentuose (jų paaiškinimuose, papildymuose).
A27: 2. Patvirtiname, kad informacija ir duomenys, pateikti pasiūlyme, yra teisingi ir apima viską, ko reikia tinkamam sutarties įvykdymui
A28: 3. Patvirtiname, kad jei pasiūlyme nenurodyti kolegialaus priežiūros/valdymo organų nariai, šie organai juridiniuose asmenyse nėra sudaryti (taikoma, kai pirkimo dokumentuose nustatyti pašalinimo pagrindai).
A29: 4. Pasiūlymas galioja iki termino, nustatyto pirkimo dokumentuose.
A30: 5. Tais atvejais, kai pagal galiojančius teisės aktus tiekėjui nereikia mokėti PVM, jis nurodo priežastis, dėl kurių PVM nemoka:
A31: 6. Tiekėjas kainas pateikia, nurodydamas ne daugiau skaičių po kablelio, nei leidžiama pirkimo dokumentuose.
A32: 1. DALIS | B32: CHIRURGININIŲ INSTRUMENTAI IR RINKINIAI
A34: Tiekėjo pasiūlymas:
A35: Nr. | B35: Pavadinimas | C35: Maksimalus kiekis | D35: Mato vienetas | E35: Vieneto įkainis be PVM, Eur | F35: Suma be PVM, Eur | G35: Siūlomos prekės modelis ir modelio modifikacija (jei taikoma) | H35: Siūlomų parametrų reikšmės ir pridedamo dokumento puslapis patvirtinantis siūlomo parametro reikšmę
A36: 1. | B36: Chirurgininių instrumentai ir rinkiniai
A37: 1.1. | B37: Tamponų žnyplės | C37: 40 | D37: vnt. | E37: 24.3 | F37: =IF(ISBLANK(E37),"", PRODUCT(C37,E37)) -> 972 | G37: AL 120-27
A38: 1.1.1. | B38: Gross-Maier tipo, tiesios, su užraktu, ilgis 27±1 cm | H38: Gross-Maier tipo, tiesios, su užraktu, ilgis 27 cm, psl. 2
A39: 1.2. | B39: Adatkotis | C39: 60 | D39: vnt. | E39: 42.8 | F39: =IF(ISBLANK(E39),"", PRODUCT(C39,E39)) -> 2568 | G39: AN 300-30
A40: 1.2.1. | B40: Mayo - Hegar tipo, ilgis 30±1 cm | H40: Mayo - Hegar tipo, ilgis 30 cm, psl. 3
A41: 1.3. | B41: Adatkotis | C41: 60 | D41: vnt. | E41: 29.6 | F41: =IF(ISBLANK(E41),"", PRODUCT(C41,E41)) -> 1776 | G41: AN 300-24
A42: 1.3.1. | B42: Mayo - Hegar tipo, ilgis 24±1 cm | H42: Mayo - Hegar tipo, ilgis 24 cm, psl. 3
A43: 1.4. | B43: Adatkotis | C43: 60 | D43: vnt. | E43: 23.3 | F43: =IF(ISBLANK(E43),"", PRODUCT(C43,E43)) -> 1398 | G43: AN 310-30
A44: 1.4.1. | B44: Mayo - Hegar tipo, lenktas, ilgis 30±1 cm | H44: Mayo - Hegar tipo, lenktas, ilgis 30 cm, psl. 3
A45: 1.5. | B45: Disekcinės žirklės | C45: 60 | D45: vnt. | E45: 39.6 | F45: =IF(ISBLANK(E45),"", PRODUCT(C45,E45)) -> 2376 | G45: AA 201-28
A46: 1.5.1. | B46: Metzenbaum tipo, lenktos, galai: bukas/bukas, ilgis 28±1 cm | H46: Metzenbaum tipo, lenktos, galai: bukas/bukas, ilgis 28 cm, psl. 4
A47: 1.6. | B47: Disekcinės žirklės | C47: 60 | D47: vnt. | E47: 25.7 | F47: =IF(ISBLANK(E47),"", PRODUCT(C47,E47)) -> 1542 | G47: AA 201-23
A48: 1.6.1. | B48: Metzenbaum tipo, lenktos, galai: bukas/bukas, ilgis 23±1 cm | H48: Metzenbaum tipo, lenktos, galai: bukas/bukas, ilgis 23 cm, psl. 4
A49: 1.7. | B49: Disekcinės žirklės | C49: 60 | D49: vnt. | E49: 28.7 | F49: =IF(ISBLANK(E49),"", PRODUCT(C49,E49)) -> 1722 | G49: AA 331-23
A50: 1.7.1. | B50: Metzenbaum tipo, lenktos, galai: smulkūs, ilgis 23±1 cm | H50: Metzenbaum tipo, lenktos, galai: smulkūs, ilgis 23 cm, psl. 4
A51: 1.8. | B51: Disekcinės žirklės | C51: 60 | D51: vnt. | E51: 22.94 | F51: =IF(ISBLANK(E51),"", PRODUCT(C51,E51)) -> 1376.4 | G51: AA 331-18
A52: 1.8.1. | B52: Metzenbaum tipo, lenktos, galai: smulkūs, ilgis 18±1 cm | H52: Metzenbaum tipo, lenktos, galai: smulkūs, ilgis 18 cm, psl. 4
A53: 1.9. | B53: Chirurginės žirklės | C53: 60 | D53: vnt. | E53: 15 | F53: =IF(ISBLANK(E53),"", PRODUCT(C53,E53)) -> 900 | G53: AA 101-14
A54: 1.9.1. | B54: Standartinės, lenktos, galai: bukas/bukas, ilgis 14,5±1 cm | H54: Standartinės, lenktos, galai: bukas/bukas, ilgis 14,5 cm, psl. 5
A55: 1.10. | B55: Žirklės | C55: 60 | D55: vnt. | E55: 31.3 | F55: =IF(ISBLANK(E55),"", PRODUCT(C55,E55)) -> 1878 | G55: AB 631-17
A56: 1.10.1. | B56: Doyen tipo, lenktos, galai: bukas/bukas, ilgis 17±1 cm | H56: Doyen tipo, lenktos, galai: bukas/bukas, ilgis 17 cm, psl. 6
A57: 1.11. | B57: Hemostatinis spaustukas | C57: 60 | D57: vnt. | E57: 35.8 | F57: =IF(ISBLANK(E57),"", PRODUCT(C57,E57)) -> 2148 | G57: AI 416-26
A58: 1.11.1. | B58: Kocher (Rochester-Ochsner) tipo, tiesus, 1x2 danteliai, ilgis 26±1cm | H58: Kocher (Rochester-Ochsner) tipo, tiesus, 1x2 danteliai, ilgis 26cm, psl. 7
A59: 1.12. | B59: Hemostatinis spaustukas | C59: 60 | D59: vnt. | E59: 21.8 | F59: =IF(ISBLANK(E59),"", PRODUCT(C59,E59)) -> 1308 | G59: AI 417-20
A60: 1.12.1. | B60: Kocher (Rochester-Ochsner) tipo, lenktas, 1x2 danteliai, ilgis 20±1 cm | H60: Kocher (Rochester-Ochsner) tipo, lenktas, 1x2 danteliai, ilgis 20 cm, psl. 7
A61: 1.13. | B61: Hemostatinis spaustukas | C61: 80 | D61: vnt. | E61: 17.2 | F61: =IF(ISBLANK(E61),"", PRODUCT(C61,E61)) -> 1376 | G61: AI 417-16
A62: 1.13.1. | B62: Hemostatinis spaustukas Kocher (Rochester-Ochsner) tipo, lenktas, 1x2 danteliai, ilgis 16±1 cm | H62: Hemostatinis spaustukas Kocher (Rochester-Ochsner) tipo, lenktas, 1x2 danteliai, ilgis 16 cm, psl. 7
A63: 1.14. | B63: Pilvaplėvės spaustukas | C63: 240 | D63: vnt. | E63: 80 | F63: =IF(ISBLANK(E63),"", PRODUCT(C63,E63)) -> 19200 | G63: AI 857-18
A64: 1.14.1. | B64: Mikulicz tipo, lenktas, 1x2 danteliai, ilgis 18±1 cm | H64: Mikulicz tipo, lenktas, 1x2 danteliai, ilgis 18 cm, psl. 8
A65: 1.15. | B65: Tamponų žnyplės | C65: 40 | D65: vnt. | E65: 26.5 | F65: =IF(ISBLANK(E65),"", PRODUCT(C65,E65)) -> 1060 | G65: AL 200-25
A66: 1.15.1. | B66: Forester tipo, tiesios, raižytas-ovalus distalinis galas, ilgis 25±1 cm | H66: Forester tipo, tiesios, raižytas-ovalus distalinis galas, ilgis 25 cm, psl. 9
A67: 1.16. | B67: Pilvaplėvės spaustukas | C67: 40 | D67: vnt. | E67: 27 | F67: =IF(ISBLANK(E67),"", PRODUCT(C67,E67)) -> 1080 | G67: AL 201-25
A68: 1.16.1. | B68: Tamponų žnyplės Forester tipo, lenktos, raižytas-ovalus distalinis galas, ilgis 25±1 cm | H68: Tamponų žnyplės Forester tipo, lenktos, raižytas-ovalus distalinis galas, ilgis 25 cm, psl. 9
A69: 1.17. | B69: Žarninis spaustukas | C69: 60 | D69: vnt. | E69: 40.5 | F69: =IF(ISBLANK(E69),"", PRODUCT(C69,E69)) -> 2430 | G69: MC 200-20
A70: 1.17.1. | B70: Thoms-Allis tipo, tiesus, distalinis galas su 6x7 dantukais, ilgis 20±1 cm | H70: Thoms-Allis tipo, tiesus, distalinis galas su 6x7 dantukais, ilgis 20 cm, psl. 10
A71: 1.18. | B71: Hemostatinis ir disekcinis spaustukas | C71: 60 | D71: vnt. | E71: 35.6 | F71: =IF(ISBLANK(E71),"", PRODUCT(C71,E71)) -> 2136 | G71: AI 485-23
A72: 1.18.1. | B72: Mixter tipo, lenktas, ilgis 23±1 cm | H72: Mixter tipo, lenktas, ilgis 23 cm, psl. 11
A73: 1.19. | B73: Hemostatinis spaustukas | C73: 60 | D73: vnt. | E73: 39 | F73: =IF(ISBLANK(E73),"", PRODUCT(C73,E73)) -> 2340 | G73: AI 351-01
A74: 1.19.1. | B74: Negus tipo, lenktas, ilgis 19±1 cm | H74: Negus tipo, lenktas, ilgis 19 cm, psl. 12
A75: 1.20. | B75: Hemostatinis spaustukas | C75: 150 | D75: vnt. | E75: 32 | F75: =IF(ISBLANK(E75),"", PRODUCT(C75,E75)) -> 4800 | G75: AI 333-24
A76: 1.20.1. | B76: Pean (Rochester) tipo, lenktas, ilgis 24±1 cm | H76: Pean (Rochester) tipo, lenktas, ilgis 24 cm, psl. 13
A77: 1.21. | B77: Hemostatinis spaustukas | C77: 300 | D77: vnt. | E77: 18 | F77: =IF(ISBLANK(E77),"", PRODUCT(C77,E77)) -> 5400 | G77: AI 333-18
A78: 1.21.1. | B78: Pean (Rochester) tipo, lenktas, ilgis 18±1 cm | H78: Pean (Rochester) tipo, lenktas, ilgis 18 cm, psl. 13
A79: 1.22. | B79: Hemostatinis spaustukas | C79: 150 | D79: vnt. | E79: 15.5 | F79: =IF(ISBLANK(E79),"", PRODUCT(C79,E79)) -> 2325 | G79: AI 333-16
A80: 1.22.1. | B80: Pean (Rochester) tipo, lenktas, ilgis 16±1 cm | H80: Pean (Rochester) tipo, lenktas, ilgis 16 cm, psl. 13
A81: 1.23. | B81: Hemostatinis spaustukas | C81: 90 | D81: vnt. | E81: 29.2 | F81: =IF(ISBLANK(E81),"", PRODUCT(C81,E81)) -> 2628 | G81: AI 332-24
A82: 1.23.1. | B82: Pean (Rochester) tipo, tiesus, ilgis 24±1 cm | H82: Pean (Rochester) tipo, tiesus, ilgis 24 cm, psl. 13
A83: 1.24. | B83: Hemostatinis spaustukas | C83: 150 | D83: vnt. | E83: 14.6 | F83: =IF(ISBLANK(E83),"", PRODUCT(C83,E83)) -> 2190 | G83: AI 101-14
A84: 1.24.1. | B84: Halstead-Mosquito, lenktas, ilgis 14±1 cm | H84: Halstead-Mosquito, lenktas, ilgis 14 cm, psl. 14
A85: 1.25. | B85: Hemostatinis spaustukas | C85: 180 | D85: vnt. | E85: 14.2 | F85: =IF(ISBLANK(E85),"", PRODUCT(C85,E85)) -> 2556 | G85: AI 100-14
A86: 1.25.1. | B86: Halstead-Mosquito, tiesus, ilgis 14±1 cm | H86: Halstead-Mosquito, tiesus, ilgis 14 cm, psl. 14
A87: 1.26. | B87: Spaustukas | C87: 180 | D87: vnt. | E87: 13.2 | F87: =IF(ISBLANK(E87),"", PRODUCT(C87,E87)) -> 2376 | G87: AK 151-13
A88: 1.26.1. | B88: Backhaus tipo, lenktas, ilgis 13±1 cm | H88: Backhaus tipo, lenktas, ilgis 13 cm, psl. 15
A89: 1.27. | B89: Anatominis pincetas | C89: 80 | D89: vnt. | E89: 17 | F89: =IF(ISBLANK(E89),"", PRODUCT(C89,E89)) -> 1360 | G89: AE 100-25
A90: 1.27.1. | B90: Standartinis, didelio pločio, tiesus, ilgis 25±1 cm | H90: Standartinis, didelio pločio, tiesus, ilgis 25 cm, psl. 16
A91: 1.28. | B91: Anatominis pincetas | C91: 80 | D91: vnt. | E91: 21 | F91: =IF(ISBLANK(E91),"", PRODUCT(C91,E91)) -> 1680 | G91: AE 100-30
A92: 1.28.1. | B92: Standartinis, tiesus, ilgis 30±1 cm | H92: Standartinis, tiesus, ilgis 30 cm, psl. 16
A93: 1.29. | B93: Anatominis pincetas | C93: 80 | D93: vnt. | E93: 12 | F93: =IF(ISBLANK(E93),"", PRODUCT(C93,E93)) -> 960 | G93: AE 100-20
A94: 1.29.1. | B94: Standartinis, tiesus, ilgis 20±1 cm | H94: Standartinis, tiesus, ilgis 20 cm, psl. 16
A95: 1.30. | B95: Anatominis pincetas | C95: 120 | D95: vnt. | E95: 7.9 | F95: =IF(ISBLANK(E95),"", PRODUCT(C95,E95)) -> 948 | G95: AE 100-14
A96: 1.30.1. | B96: Standartinis, tiesus, ilgis 14,5±1 cm | H96: Standartinis, tiesus, ilgis 14,5 cm, psl. 16
A97: 1.31. | B97: Chirurginis pincetas | C97: 120 | D97: vnt. | E97: 8.3 | F97: =IF(ISBLANK(E97),"", PRODUCT(C97,E97)) -> 996 | G97: AE 406-14
A98: 1.31.1. | B98: Standartinis, tiesus, 1x2 danteliai, ilgis 14,5±1 cm | H98: Standartinis, tiesus, 1x2 danteliai, ilgis 14,5 cm, psl. 17
A99: 1.32. | B99: Skalpelio rankenėlė | C99: 120 | D99: vnt. | E99: 4.3 | F99: =IF(ISBLANK(E99),"", PRODUCT(C99,E99)) -> 516 | G99: AS 100-03
A100: 1.32.1. | B100: Standartinė, 12±1cm, skalpeliams nuo 10 iki 17 numerio | H100: Standartinė, 12,5 cm, skalpeliams nuo 10 iki 17 numerio, psl. 18
A101: 1.33. | B101: Skalpelio rankenėlė | C101: 120 | D101: vnt. | E101: 4.3 | F101: =IF(ISBLANK(E101),"", PRODUCT(C101,E101)) -> 516 | G101: AS 100-04
A102: 1.33.1. | B102: Standartinė, 13±1cm, skalpeliams nuo 18 iki 36 numerio | H102: Standartinė, 13,5cm, skalpeliams nuo 18 iki 36 numerio, psl. 18
A103: 1.34. | B103: Skalpelio rankenėlė | C103: 60 | D103: vnt. | E103: 11.3 | F103: =IF(ISBLANK(E103),"", PRODUCT(C103,E103)) -> 678 | G103: AS 110-03
A104: 1.34.1. | B104: Standartinė, ilga, 20±1cm, skalpeliams nuo 10 iki 17 numerio | H104: Standartinė, ilga, 21cm, skalpeliams nuo 10 iki 17 numerio, psl. 19
A105: 1.35. | B105: Skalpelio rankenėlė | C105: 60 | D105: vnt. | E105: 11 | F105: =IF(ISBLANK(E105),"", PRODUCT(C105,E105)) -> 660 | G105: AS 110-04
A106: 1.35.1. | B106: Standartinė, ilga, 20±1cm, skalpeliams nuo 18 iki 36 numerio | H106: Standartinė, ilga, 21cm, skalpeliams nuo 18 iki 36 numerio, psl. 19
A107: 1.36. | B107: Zondas | C107: 50 | D107: vnt. | E107: 24.2 | F107: =IF(ISBLANK(E107),"", PRODUCT(C107,E107)) -> 1210 | G107: GK 250-32
A108: 1.36.1. | B108: Sims tipo, metalinis, ilgis 32±1 cm | H108: Sims tipo, metalinis, ilgis 32 cm, psl. 20
A109: 1.37. | B109: Zondas | C109: 40 | D109: vnt. | E109: 28.6 | F109: =IF(ISBLANK(E109),"", PRODUCT(C109,E109)) -> 1144 | G109: GK 310-25
A110: 1.37.1. | B110: Valleix tipo, ilgis 25±1 cm | H110: Valleix tipo, ilgis 25 cm, psl. 20
A111: 1.38. | B111: Dilatatorius | C111: 40 | D111: vnt. | E111: 17.4 | F111: =IF(ISBLANK(E111),"", PRODUCT(C111,E111)) -> 696 | G111: GK 221-15
A112: 1.38.1. | B112: Pratt tipo, diametras 13/15 ±1mm, ilgis 29±1 cm | H112: Pratt tipo, diametras 13/15mm, ilgis 29 cm, psl. 21
A113: 1.39. | B113: Dilatatorius | C113: 40 | D113: vnt. | E113: 17.4 | F113: =IF(ISBLANK(E113),"", PRODUCT(C113,E113)) -> 696 | G113: GK 221-19
A114: 1.39.1. | B114: Pratt tipo, diametras 17/19 ±1 mm, ilgis 29±1 cm | H114: Pratt tipo, diametras 17/19 mm, ilgis 29 cm, psl. 21
A115: 1.40. | B115: Dilatatorius | C115: 40 | D115: vnt. | E115: 18.8 | F115: =IF(ISBLANK(E115),"", PRODUCT(C115,E115)) -> 752 | G115: GK 221-23
A116: 1.40.1. | B116: Pratt tipo, diametras 21/23 ±1 mm, ilgis 29±1 cm | H116: Pratt tipo, diametras 21/23 mm, ilgis 29 cm, psl. 21
A117: 1.41. | B117: Dilatatorius | C117: 40 | D117: vnt. | E117: 18.8 | F117: =IF(ISBLANK(E117),"", PRODUCT(C117,E117)) -> 752 | G117: GK 221-27
A118: 1.41.1. | B118: Pratt tipo, diametras 25/27 ±1 mm, ilgis 29±1 cm | H118: Pratt tipo, diametras 25/27 mm, ilgis 29 cm, psl. 21
A119: 1.42. | B119: Retraktorius | C119: 30 | D119: vnt. | E119: 74.5 | F119: =IF(ISBLANK(E119),"", PRODUCT(C119,E119)) -> 2235 | G119: AX 780-02
A120: 1.42.1. | B120: Mikulicz tipo, gaubtas, mentelės dydis 120x50±1mm, ilgis 25±1 cm | H120: Mikulicz tipo, gaubtas, mentelės dydis 120x50mm, ilgis 25 cm, psl. 22
A121: 1.43. | B121: Retraktorius | C121: 30 | D121: vnt. | E121: 98.7 | F121: =IF(ISBLANK(E121),"", PRODUCT(C121,E121)) -> 2961 | G121: AX 780-04
A122: 1.43.1. | B122: Mikulicz tipo, gaubtas, mentelės dydis 180x50±1mm, ilgis 25±1 cm | H122: Mikulicz tipo, gaubtas, mentelės dydis 180x50mm, ilgis 25 cm, psl. 22
A123: 1.44. | B123: Retraktorius | C123: 30 | D123: vnt. | E123: 74.5 | F123: =IF(ISBLANK(E123),"", PRODUCT(C123,E123)) -> 2235 | G123: AX 782-25
A124: 1.44.1. | B124: Mikulicz tipo, mentelės dydis 90x50±1mm, ilgis 25±1 cm | H124: Mikulicz tipo, mentelės dydis 90x50mm, ilgis 25 cm, psl. 22
A125: 1.45. | B125: Retraktorius | C125: 30 | D125: vnt. | E125: 34.8 | F125: =IF(ISBLANK(E125),"", PRODUCT(C125,E125)) -> 1044 | G125: AX 705-23
A126: 1.45.1. | B126: Tuffier tipo, mentelės dydis 64x60±1mm, ilgis 23±1 cm | H126: Tuffier tipo, mentelės dydis 64x60mm, ilgis 23 cm, psl. 23
A127: 1.46. | B127: Retraktorius | C127: 30 | D127: vnt. | E127: 52.5 | F127: =IF(ISBLANK(E127),"", PRODUCT(C127,E127)) -> 1575 | G127: AX 770-18
A128: 1.46.1. | B128: Brunner tipo, mentelės dydis 180x30±1mm, ilgis 25±1 cm | H128: Brunner tipo, mentelės dydis 180x30mm, ilgis 25 cm, psl. 22
A129: 1.47. | B129: Retraktorius | C129: 50 | D129: vnt. | E129: 42.6 | F129: =IF(ISBLANK(E129),"", PRODUCT(C129,E129)) -> 2130 | G129: AX 410-30
A130: 1.47.1. | B130: Kocher tipo, mentelės dydis 75x30±1mm, ilgis 23±1 cm | H130: Kocher tipo, mentelės dydis 75x30mm, ilgis 23 cm, psl. 25
A131: 1.48. | B131: Retraktorius | C131: 30 | D131: vnt. | E131: 38.8 | F131: =IF(ISBLANK(E131),"", PRODUCT(C131,E131)) -> 1164 | G131: AX 322-04
A132: 1.48.1. | B132: Volkmann tipo, 4 danteliai, danteliai pusiau aštrūs, ilgis 21,5±1 cm | H132: Volkmann tipo, 4 danteliai, danteliai pusiau aštrūs, ilgis 21,5 cm, psl. 26
A133: 1.49. | B133: Retraktorius | C133: 30 | D133: vnt. | E133: 37.2 | F133: =IF(ISBLANK(E133),"", PRODUCT(C133,E133)) -> 1116 | G133: AX 322-03
A134: 1.49.1. | B134: Volkmann tipo, 3 danteliai, danteliai pusiau aštrūs, ilgis 21,5±1 cm | H134: Volkmann tipo, 3 danteliai, danteliai pusiau aštrūs, ilgis 21,5 cm, psl. 26
A135: 1.50. | B135: Retraktorius | C135: 20 | D135: vnt. | E135: 52.7 | F135: =IF(ISBLANK(E135),"", PRODUCT(C135,E135)) -> 1054 | G135: AZ 602-58
A136: 1.50.1. | B136: Doyen tipo, mentelės dydis 55x125±1mm, ilgis 28±1 cm | H136: Doyen tipo, mentelės dydis 55x125mm, ilgis 28 cm, psl. 27
A137: 1.51. | B137: Retraktorius | C137: 20 | D137: vnt. | E137: 84.3 | F137: =IF(ISBLANK(E137),"", PRODUCT(C137,E137)) -> 1686 | G137: AX 700-25
A138: 1.51.1. | B138: Doyen tipo, mentelės dydis 80x53±1mm, ilgis 25±1 cm | H138: Doyen tipo, mentelės dydis 80x53mm, ilgis 25 cm, psl. 28
A139: 1.52. | B139: Retraktorius | C139: 20 | D139: vnt. | E139: 64.2 | F139: =IF(ISBLANK(E139),"", PRODUCT(C139,E139)) -> 1284 | G139: AX 700-26
A140: 1.52.1. | B140: Doyen tipo, mentelės dydis 78x82±1mm, ilgis 26±1 cm | H140: Doyen tipo, mentelės dydis 78x82mm, ilgis 26 cm, psl. 28
A141: 1.53. | B141: Retraktorius | C141: 20 | D141: vnt. | E141: 37 | F141: =IF(ISBLANK(E141),"", PRODUCT(C141,E141)) -> 740 | G141: AX 900-28
A142: 1.53.1. | B142: Reverdin tipo, mentelės dydis 45x60±1mm, ilgis 28±1 cm | H142: Reverdin tipo, mentelės dydis 45x60mm, ilgis 28 cm, psl. 29
A143: 1.54. | B143: Abdominalinė mentelė | C143: 20 | D143: vnt. | E143: 21 | F143: =IF(ISBLANK(E143),"", PRODUCT(C143,E143)) -> 420 | G143: AX 914-75
A144: 1.54.1. | B144: Ochsner tipo, mentelės dydis 76±1mm, ilgis 33±1 cm | H144: Ochsner tipo, mentelės dydis 76mm, ilgis 33 cm, psl. 30
A145: 1.55. | B145: Abdominalinis prapletėjas | C145: 30 | D145: vnt. | E145: 493.2 | F145: =IF(ISBLANK(E145),"", PRODUCT(C145,E145)) -> 14796 | G145: AZ 500-00
A146: 1.55.1. | B146: Balfour-usa tipo, plėtėjo dydis 180±1mm, centrinė mentelė 70x85±1mm, antra centrinė mentelė 68x84±1mm, lateralinė mentelė 50±1mm, antra lateralinė mentelė 75±1mm | H146: Balfour-usa tipo, plėtėjo dydis 180mm, centrinė mentelė 70x85mm, antra centrinė mentelė 68x84mm, lateralinė mentelė 50mm, antra lateralinė mentelė 75mm, psl. 31
A147: 1.56. | B147: Inkstų akmenų žnyplės | C147: 20 | D147: vnt. | E147: 44.8 | F147: =IF(ISBLANK(E147),"", PRODUCT(C147,E147)) -> 896 | G147: MH 101-02
A148: 1.56.1. | B148: Randall tipo, silpnai lenktos nuo 30 iki 90 laipsnių, ilgis 22±1 cm | H148: Randall tipo, silpnai lenktos 30 laipsnių, ilgis 22 cm, psl. 32
A149: 1.57. | B149: Inkstų akmenų žnyplės | C149: 20 | D149: vnt. | E149: 47.8 | F149: =IF(ISBLANK(E149),"", PRODUCT(C149,E149)) -> 956 | G149: MH 101-03
A150: 1.57.1. | B150: Randall tipo, stipriai lenktos nuo 95 iki 135 laipsnių, ilgis 22±1 cm | H150: Randall tipo, stipriai lenktos nuo 95 laipsnių, ilgis 22 cm, psl. 32
A151: 1.58. | B151: Retraktorius | C151: 15 | D151: vnt. | E151: 136.2 | F151: =IF(ISBLANK(E151),"", PRODUCT(C151,E151)) -> 2043 | G151: AX 720-03
A152: 1.58.1. | B152: St.Marks tipo, mentelės dydis 60x45±1mm, ilgis 33±1 cm | H152: St.Marks tipo, mentelės dydis 60x45mm, ilgis 33 cm, psl. 33
A153: 1.59. | B153: Indas | C153: 40 | D153: vnt. | E153: 10.4 | F153: =IF(ISBLANK(E153),"", PRODUCT(C153,E153)) -> 416 | G153: SO 100-25
A154: 1.59.1. | B154: Inksto formos, išmatavimai 250x40±1 mm, talpa 0,5 litro | H154: Inksto formos, išmatavimai 250x40 mm, talpa 0,5 litro, psl. 34
A155: 1.60. | B155: Indas | C155: 40 | D155: vnt. | E155: 9.8 | F155: =IF(ISBLANK(E155),"", PRODUCT(C155,E155)) -> 392 | G155: SO 110-70
A156: 1.60.1. | B156: Puodelio formos, su rankena, išmatavimai 70x100±1 mm, talpa 0,35 litro | H156: Puodelio formos, su rankena, išmatavimai 70x100 mm, talpa 0,35 litro, psl. 34
A157: 1.61. | B157: Adata | C157: 40 | D157: vnt. | E157: 34.8 | F157: =IF(ISBLANK(E157),"", PRODUCT(C157,E157)) -> 1392 | G157: AN 604-20
A158: 1.61.1. | B158: Deschamps tipo, kairiarankiams, mažai lenkta, ilgis 20±1 cm | H158: Deschamps tipo, kairiarankiams, mažai lenkta, ilgis 20 cm, psl. 35
A159: 1.62. | B159: Adata | C159: 40 | D159: vnt. | E159: 34.8 | F159: =IF(ISBLANK(E159),"", PRODUCT(C159,E159)) -> 1392 | G159: AN 605-20
A160: 1.62.1. | B160: Deschamps tipo, dešiniarankiams, mažai lenkta, ilgis 20±1 cm | H160: Deschamps tipo, dešiniarankiams, mažai lenkta, ilgis 20 cm, psl. 35
A161: 1.63. | B161: Dilatatorius | C161: 10 | D161: vnt. | E161: 7.5 | F161: =IF(ISBLANK(E161),"", PRODUCT(C161,E161)) -> 75 | G161: GK 100-02
A162: 1.63.1. | B162: Hegar tipo, 2 mm | H162: Hegar tipo, 2 mm, psl. 36
A163: 1.64. | B163: Dilatatorius | C163: 10 | D163: vnt. | E163: 7.5 | F163: =IF(ISBLANK(E163),"", PRODUCT(C163,E163)) -> 75 | G163: GK 100-03
A164: 1.64.1. | B164: Hegar tipo, 3 mm | H164: Hegar tipo, 3 mm, psl. 36
A165: 1.65. | B165: Dilatatorius | C165: 10 | D165: vnt. | E165: 7.5 | F165: =IF(ISBLANK(E165),"", PRODUCT(C165,E165)) -> 75 | G165: GK 100-04
A166: 1.65.1. | B166: Dilatatorius Hegar tipo, 4 mm | H166: Dilatatorius Hegar tipo, 4 mm, psl. 36
A167: 1.66. | B167: Dilatatorius | C167: 10 | D167: vnt. | E167: 7.5 | F167: =IF(ISBLANK(E167),"", PRODUCT(C167,E167)) -> 75 | G167: GK 100-05
A168: 1.66.1. | B168: Dilatatorius Hegar tipo, 5 mm | H168: Dilatatorius Hegar tipo, 5 mm, psl. 36
A169: 1.67. | B169: Dilatatorius | C169: 10 | D169: vnt. | E169: 14.2 | F169: =IF(ISBLANK(E169),"", PRODUCT(C169,E169)) -> 142 | G169: GK 100-06
A170: 1.67.1. | B170: Dilatatorius Hegar tipo, 6 mm | H170: Dilatatorius Hegar tipo, 6 mm, psl. 36
A171: 1.68. | B171: Dilatatorius | C171: 10 | D171: vnt. | E171: 14.2 | F171: =IF(ISBLANK(E171),"", PRODUCT(C171,E171)) -> 142 | G171: GK 100-07
A172: 1.68.1. | B172: Dilatatorius Hegar tipo, 7 mm | H172: Dilatatorius Hegar tipo, 7 mm, psl. 36
A173: 1.69. | B173: Dilatatorius | C173: 10 | D173: vnt. | E173: 14.2 | F173: =IF(ISBLANK(E173),"", PRODUCT(C173,E173)) -> 142 | G173: GK 100-08
A174: 1.69.1. | B174: Dilatatorius Hegar tipo, 8 mm | H174: Dilatatorius Hegar tipo, 8 mm, psl. 36
A175: 1.70. | B175: Dilatatorius | C175: 10 | D175: vnt. | E175: 14.2 | F175: =IF(ISBLANK(E175),"", PRODUCT(C175,E175)) -> 142 | G175: GK 100-09
A176: 1.70.1. | B176: Dilatatorius Hegar tipo, 9 mm | H176: Dilatatorius Hegar tipo, 9 mm, psl. 36
A177: 1.71. | B177: Dilatatorius | C177: 10 | D177: vnt. | E177: 14.2 | F177: =IF(ISBLANK(E177),"", PRODUCT(C177,E177)) -> 142 | G177: GK 100-10
A178: 1.71.1. | B178: Dilatatorius Hegar tipo, 10 mm | H178: Dilatatorius Hegar tipo, 10 mm, psl. 36
A179: 1.72. | B179: Dilatatorius | C179: 10 | D179: vnt. | E179: 19.8 | F179: =IF(ISBLANK(E179),"", PRODUCT(C179,E179)) -> 198 | G179: GK 100-11
A180: 1.72.1. | B180: Dilatatorius Hegar tipo, 11 mm | H180: Dilatatorius Hegar tipo, 11 mm, psl. 36
A181: 1.73. | B181: Dilatatorius | C181: 10 | D181: vnt. | E181: 19.8 | F181: =IF(ISBLANK(E181),"", PRODUCT(C181,E181)) -> 198 | G181: GK 100-12
A182: 1.73.1. | B182: Dilatatorius Hegar tipo, 12 mm | H182: Dilatatorius Hegar tipo, 12 mm, psl. 36
A183: 1.74. | B183: Dilatatorius | C183: 10 | D183: vnt. | E183: 19.8 | F183: =IF(ISBLANK(E183),"", PRODUCT(C183,E183)) -> 198 | G183: GK 100-13
A184: 1.74.1. | B184: Dilatatorius Hegar tipo, 13 mm | H184: Dilatatorius Hegar tipo, 13 mm, psl. 36
A185: 1.75. | B185: Dilatatorius | C185: 10 | D185: vnt. | E185: 19.8 | F185: =IF(ISBLANK(E185),"", PRODUCT(C185,E185)) -> 198 | G185: GK 100-14
A186: 1.75.1. | B186: Dilatatorius Hegar tipo, 14 mm | H186: Dilatatorius Hegar tipo, 14 mm, psl. 36
A187: 1.76. | B187: Dilatatorius | C187: 10 | D187: vnt. | E187: 19.8 | F187: =IF(ISBLANK(E187),"", PRODUCT(C187,E187)) -> 198 | G187: GK 100-15
A188: 1.76.1. | B188: Dilatatorius Hegar tipo, 15 mm | H188: Dilatatorius Hegar tipo, 15 mm, psl. 36
A189: 1.77. | B189: Dilatatorius | C189: 10 | D189: vnt. | E189: 25.6 | F189: =IF(ISBLANK(E189),"", PRODUCT(C189,E189)) -> 256 | G189: GK 100-16
A190: 1.77.1. | B190: Dilatatorius Hegar tipo, 16 mm | H190: Dilatatorius Hegar tipo, 16 mm, psl. 36
A191: 1.78. | B191: Dilatatorius | C191: 10 | D191: vnt. | E191: 25.6 | F191: =IF(ISBLANK(E191),"", PRODUCT(C191,E191)) -> 256 | G191: GK 100-17
A192: 1.78.1. | B192: Dilatatorius Hegar tipo, 17 mm | H192: Dilatatorius Hegar tipo, 17 mm, psl. 36
A193: 1.79. | B193: Dilatatorius | C193: 10 | D193: vnt. | E193: 28.7 | F193: =IF(ISBLANK(E193),"", PRODUCT(C193,E193)) -> 287 | G193: GK 100-19
A194: 1.79.1. | B194: Dilatatorius Hegar tipo, 19 mm | H194: Dilatatorius Hegar tipo, 19 mm, psl. 36
A195: 1.80. | B195: Dilatatorius | C195: 10 | D195: vnt. | E195: 28.7 | F195: =IF(ISBLANK(E195),"", PRODUCT(C195,E195)) -> 287 | G195: GK 100-20
A196: 1.80.1. | B196: Dilatatorius Hegar tipo, 20 mm | H196: Dilatatorius Hegar tipo, 20 mm, psl. 36
A197: 1.81. | B197: Dilatatorius | C197: 10 | D197: vnt. | E197: 34.9 | F197: =IF(ISBLANK(E197),"", PRODUCT(C197,E197)) -> 349 | G197: GK 100-21
A198: 1.81.1. | B198: Dilatatorius Hegar tipo, 21 mm | H198: Dilatatorius Hegar tipo, 21 mm, psl. 36
A199: 1.82. | B199: Dilatatorius | C199: 10 | D199: vnt. | E199: 34.9 | F199: =IF(ISBLANK(E199),"", PRODUCT(C199,E199)) -> 349 | G199: GK 100-22
A200: 1.82.1. | B200: Dilatatorius Hegar tipo, 22 mm | H200: Dilatatorius Hegar tipo, 22 mm, psl. 36
A201: 1.83. | B201: Dilatatorius | C201: 10 | D201: vnt. | E201: 34.9 | F201: =IF(ISBLANK(E201),"", PRODUCT(C201,E201)) -> 349 | G201: GK 100-23
A202: 1.83.1. | B202: Dilatatorius Hegar tipo, 23 mm | H202: Dilatatorius Hegar tipo, 23 mm, psl. 36
A203: 1.84. | B203: Dilatatorius | C203: 10 | D203: vnt. | E203: 34.9 | F203: =IF(ISBLANK(E203),"", PRODUCT(C203,E203)) -> 349 | G203: GK 100-24
A204: 1.84.1. | B204: Dilatatorius Hegar tipo, 24 mm | H204: Dilatatorius Hegar tipo, 24 mm, psl. 36
A205: 1.85. | B205: Dilatatorius | C205: 10 | D205: vnt. | E205: 39.7 | F205: =IF(ISBLANK(E205),"", PRODUCT(C205,E205)) -> 397 | G205: GK 100-25
A206: 1.85.1. | B206: Dilatatorius Hegar tipo, 25 mm | H206: Dilatatorius Hegar tipo, 25 mm, psl. 36
E207: Suma be PVM | F207: =IF((COUNT(C37:C206)<>COUNT(F37:F206)),"", SUM(F37:F206)) -> 132231.4 | G207: =IF((COUNT(C37:C206)<>COUNT(F37:F206)),"Neužpildytos visų objektų kainos", "") -> 
... 255 more rows

Sheet Subtiekėjai ir priedai
A2: Ūkio subjektai (įskaitant kvazisubtiekėjus - fiziniai asmenys, kuriuos ketinama įdarbinti pirkimo laimėjimo atveju), kurių pajėgumais tiekėjas remiasi, kad atitiktų keliamus kvalifikacijos reikalavimus:
A5: Pavadinimas* | C5: Kodas, adresas | F5: Perduodami įsipareigojimai | I5: Perduodamų įsipareigojimų dalis nuo visos pirkimo sutarties (Eur arba %) | K5: Kval. Reikalavimo Nr.
A6: -
A17: Subtiekėjams / subteikėjams / subrangovams numatomos perduoti veiklos (privaloma nurodyti) ir šių ūkio subjektų pavadinimai (jei žinomi):
A19: Pavadinimas | C19: Kodas, adresas | F19: Perduodama veikla* | I19: Perduodamos veiklos dalis nuo visos pirkimo sutarties (Eur arba %)
A20: -
A33: Kartu su pasiūlymu pateikiami šie dokumentai:
A35: Nr. | B35: Dokumento pavadinimas | H35: Dokumentas yra konfidencialus? Taip/Ne
A36: 1 | B36: Jungtinės veiklos kopija (jei taikoma) | H36: -
A37: 2 | B37: Europos bendrasis viešųjų pirkimų dokumentas | H37: Ne
A38: 3 | B38: Subtiekimo sutartis, ketinimų protokolas, preliminarios sutartys ar kiti dokumentai, patvirtinantys, kad laimėjus pirkimą tiekėjui bus prieinami kitų ūkio subjektų ištekliai (jei pasitelkiami kvalifikacijos atitikimui) | H38: -
A39: 4 | B39: Pasiūlymo atitikimą pirkimo sąlygų techninei specifikacijai pagrindžiantys dokumentai | H39: Taip
A40: 5 | B40: 01 Pasiulymas | H40: Ne
A41: 6 | B41: 02 Technine specifikacija | H41: Ne
A42: 7 | B42: 03 Igaliojimas pateikti pasiulyma | H42: Ne
A43: 8 | B43: 04 RC jungtine pazyma | H43: Ne
A44: 9 | B44: 07 - 08 Gamintojo įgaliojimas 09 - 10 Gamintojo raštas del pavadinimo keitimo 16 - 17 Gamintojo įgaliojimas | H44: Taip
A45: 10 | B45: 11 - 12 Gamintojo CE sertifikatas 18 Gamintojo CE sertifikatas | H45: Taip
A46: 11 | B46: 13 Metalo kokybes sertifikatu paaiskinimas 14 - 15 Metalo deklaracija | H46: Taip
A48: Pasiūlyme nurodyta Prekės kaina, išskyrus jos sudedamąsias dalis, subtiekėjai, taip pat kita informacija, kuri teisės aktų nustatyta tvarka turi būti skelbiama arba kitokiu būdu viešai prieinama visuomenei, nėra laikoma konfidencialia informacija. Konfidencialią informaciją sudaro, visų pirma, komercinė (gamybinė) paslaptis ir konfidencialieji pasiūlymų aspektai. Informacija, kurią viešai skelbti įpareigoja Lietuvos Respublikos įstatymai, negali būti tiekėjo nurodoma kaip konfidenciali, todėl, tiekėjui nurodžius tokią informaciją kaip konfidencialią, perkančioji organizacija turi teisę ją skelbti. Jei tiekėjas nenurodo konfidencialios informacijos, laikoma, kad konfidencialios informacijos tiekėjo pasiūlyme nėra. Vadovaujantis Informacijos viešinimo Centrinėje viešųjų pirkimų informacinėje sistemoje tvarkos aprašu, patvirtintu Viešųjų pirkimų tarnybos direktoriaus 2017 m. birželio 19 d. įsakymu Nr. 1S-91 „Dėl Informacijos viešinimo Centrinėje viešųjų pirkimų informacinėje sistemoje tvarkos aprašo patvirtinimo“, perkančioji organizacija laimėjusio dalyvio pasiūlymą, išskyrus informaciją, kurią tiekėjas nurodė kaip konfidencialią, paskelbs CVP IS.
A51: Tiekėjo arba jo įgalioto asmens pareigų pavadinimas: | E51: Administratore / buhaltere
A53: Pasirašančio asmens vardas ir pavardė: | E53: Giedre Valiene
A100: 6470 2022-04-25 18:24:49
